fUST/lending_fUST_20250407
["ID","MTS","AMOUNT","RATE_DAILY","PERIOD"]
[357289387,1743982242674,-151.0,0.00046254,120]
[357289391,1743982242686,-151.0,0.00046254,120]
[357289394,1743982242696,-501.991094,0.00046254,120]
[357289398,1743982242707,-501.991094,0.00046254,120]
[357289402,1743982242717,-501.991094,0.00046254,120]
[357289404,1743982242728,-501.991094,0.00046254,120]
[357289406,1743982242738,-501.991094,0.00046254,120]
[357289407,1743982242749,-501.991094,0.00046254,120]
[357289409,1743982242760,-501.991094,0.00046254,120]
[357289412,1743982242770,-501.991094,0.00046254,120]
[357289413,1743982242781,-501.991094,0.00046254,120]
[357289415,1743982242793,-501.991094,0.00046254,120]
[357289417,1743982242803,-501.991094,0.00046254,120]
[357289420,1743982242814,-501.991094,0.00046254,120]
[357289422,1743982242824,-501.991094,0.00046254,120]
[357289425,1743982242835,-151.0,0.00046254,120]
[357289428,1743982242846,-501.991094,0.00046254,120]
[357289429,1743982242856,-151.0,0.00046254,120]
[357289432,1743982242870,-501.991094,0.00046254,120]
[357289435,1743982242881,-151.0,0.00046254,120]
[357289436,1743982242891,-501.991094,0.00046254,120]
[357289438,1743982242902,-151.0,0.00046254,120]
[357289439,1743982242912,-501.991094,0.00046254,120]
[357289441,1743982242923,-151.0,0.00046254,120]
[357289443,1743982242934,-501.991094,0.00046254,120]
[357289444,1743982242945,-151.0,0.00046254,120]
[357289445,1743982242954,-501.991094,0.00046254,120]
[357289446,1743982242964,-501.99109,0.00046254,120]
[357289447,1743982242974,-151.0,0.00046254,120]
[357289448,1743982242983,-151.0,0.00046254,120]
[357289449,1743982242994,-151.0,0.00046254,120]
[357289451,1743982243004,-151.0,0.00046254,120]
[357289453,1743982243015,-151.0,0.00046254,120]
[357289454,1743982243025,-151.0,0.00046254,120]
[357289456,1743982243035,-151.0,0.00046254,120]
[357289457,1743982243045,-151.0,0.00046254,120]
[357289458,1743982243055,-191.992574,0.00046254,120]
[357289459,1743982243065,-191.496717,0.00046254,120]
[357289460,1743982243075,-151.0,0.00046254,120]
[357289461,1743982243085,-588.820745,0.00046254,2]
[357289462,1743982243095,-588.820745,0.00046254,2]
[357289463,1743982243106,-588.820745,0.00046254,2]
[357289464,1743982243119,-588.820745,0.00046254,2]
[357289465,1743982243128,-588.820745,0.00046254,2]
[357289466,1743982243139,-588.820745,0.00046254,2]
[357289467,1743982243149,-588.820745,0.00046254,2]
[357289468,1743982243159,-588.820745,0.00046254,2]
[357289469,1743982243170,-151.0,0.00046254,120]
[357289470,1743982243180,-588.820745,0.00046254,2]
[357289471,1743982243190,-588.820745,0.00046254,2]
[357289472,1743982243200,-151.0,0.00046254,120]
[357289473,1743982243210,-588.820745,0.00046254,2]
[357289474,1743982243220,-151.0,0.00046254,120]
[357289475,1743982243230,-588.820745,0.00046254,2]
[357289476,1743982243240,-151.0,0.00046254,120]
[357289477,1743982243250,-588.820745,0.00046254,2]
[357289478,1743982243260,-151.0,0.00046254,120]
[357289479,1743982243270,-588.820745,0.00046254,2]
[357289480,1743982243280,-588.820745,0.00046254,2]
[357289481,1743982243290,-588.820745,0.00046254,2]
[357289482,1743982243300,-588.820745,0.00046254,2]
[357289483,1743982243310,-588.820745,0.00046254,2]
[357289484,1743982243320,-588.820745,0.00046254,2]
[357289485,1743982243330,-588.820738,0.00046254,2]
[357289486,1743982243340,-151.0,0.00046254,120]
[357289487,1743982243350,-151.0,0.00046254,120]
[357289488,1743982243360,-151.0,0.00046254,120]
[357289489,1743982243370,-151.0,0.00046254,120]
[357289490,1743982243379,-151.0,0.00046254,120]
[357289491,1743982243390,-3019.01041505,0.00046254,2]
[357289492,1743982243399,-13041.15243073,0.00046254,7]
[357289493,1743982243409,-5854.51593981,0.00046254,7]
[357289494,1743982243418,-498.0,0.00046254,7]
[357289495,1743982243428,-20658.61341774,0.00046254,7]
[357289496,1743982243438,-28421.65501385,0.00046254,2]
[357289497,1743982243448,-211213.43687533,0.00046254,20]
[357289500,1743982243504,-10505.50301376,0.00046254,20]
[357289501,1743982243519,-32619.38829617,0.00046254,15]
[357289503,1743982243530,-10000.088599,0.00046254,2]
[357289505,1743982243539,-1075.48810057,0.00046254,10]
[357289507,1743982243549,-200.0,0.00046254,10]
[357289509,1743982243559,-30220.03428151,0.00046254,2]
[357289510,1743982243568,-25829.70728137,0.00046254,7]
[357289511,1743982243577,-605.18167935,0.00046254,15]
[357289512,1743982243587,-2614.57408662,0.00046254,5]
[357289513,1743982243679,-0.00364399,0.000289,2]
[357289514,1743982243718,-120.33048699,0.000289,2]
[357289566,1743982246227,-159.36416562,0.000289,2]
[357289568,1743982246238,-116.99200539,0.0003165,2]
[357289569,1743982246249,-162.70629118,0.0003165,2]
[357289570,1743982246259,-279.69829657,0.000344,2]
[357289571,1743982246268,-167.0,0.00045685,90]
[357289572,1743982246278,-385.42591338,0.00046254,5]
[357289573,1743982246287,-26712.35684617,0.00046254,28]
[357289574,1743982246297,-191.03501434,0.00046254,12]
[357289575,1743982246307,-1491.62141422,0.00046254,2]
[357289576,1743982246317,-646.56790089,0.00046254,2]
[357289577,1743982246326,-3852.08896969,0.00046254,2]
[357289578,1743982246336,-699.70570328,0.00046254,2]
[357289579,1743982246346,-503.22373732,0.00046254,2]
[357289580,1743982246356,-99800.0,0.00046254,2]
[357289581,1743982246369,-1198.04359427,0.00046254,7]
[357289582,1743982246379,-49899.999999,0.00046254,7]
[357289583,1743982246388,-997.91744397,0.00046254,7]
[357289584,1743982246399,-461.01504933,0.00046254,7]
[357289585,1743982246409,-201.77529035,0.00046254,10]
[357289586,1743982246419,-150.02083613,0.00046254,2]
[357289587,1743982246429,-1702.1359951,0.00046254,2]
[357289588,1743982246439,-1561.6078011,0.00046254,2]
[357289589,1743982246448,-211.23571998,0.00046254,2]
[357289590,1743982246458,-500.0,0.00046254,7]
[357289591,1743982246468,-500.0,0.00046254,7]
[357289592,1743982246478,-500.0,0.00046254,7]
[357289593,1743982246487,-500.0,0.00046254,7]
[357289594,1743982246497,-500.0,0.00046254,7]
[357289595,1743982246511,-500.0,0.00046254,7]
[357289596,1743982246521,-500.0,0.00046254,7]
[357289597,1743982246530,-500.0,0.00046254,7]
[357289598,1743982246540,-500.0,0.00046254,7]
[357289599,1743982246550,-500.0,0.00046254,5]
[357289600,1743982246559,-500.0,0.00046254,5]
[357289601,1743982246570,-500.0,0.00046254,5]
[357289602,1743982246579,-500.0,0.00046254,5]
[357289603,1743982246589,-500.0,0.00046254,5]
[357289604,1743982246598,-403.00123324,0.00046254,5]
[357289605,1743982246615,-500.0,0.00046254,2]
[357289606,1743982246625,-500.0,0.00046254,7]
[357289607,1743982246635,-500.0,0.00046254,7]
[357289608,1743982246647,-500.0,0.00046254,7]
[357289609,1743982246657,-500.0,0.00046254,7]
[357289610,1743982246667,-500.0,0.00046254,7]
[357289611,1743982246677,-500.0,0.00046254,7]
[357289612,1743982246690,-500.0,0.00046254,10]
[357289613,1743982246703,-500.0,0.00046254,10]
[357289614,1743982246718,-500.0,0.00046254,10]
[357289615,1743982246728,-500.0,0.00046254,10]
[357289616,1743982246738,-208.98597613,0.00046254,10]
[357289617,1743982246749,-500.0,0.00046254,20]
[357289618,1743982246759,-511.43717464,0.00046254,20]
[357289619,1743982246938,-925.28,0.00046254,15]
[357289620,1743982246950,-925.28,0.00046254,15]
[357289621,1743982246961,-925.28,0.00046254,15]
[357289622,1743982246971,-925.28,0.00046254,15]
[357289623,1743982246981,-925.28,0.00046254,15]
[357289624,1743982246991,-925.28,0.00046254,15]
[357289625,1743982247002,-925.28,0.00046254,15]
[357289626,1743982247012,-925.28,0.00046254,15]
[357289627,1743982247022,-925.28,0.00046254,15]
[357289628,1743982247031,-925.28,0.00046254,15]
[357289629,1743982247041,-925.28,0.00046254,15]
[357289630,1743982247051,-106.36540563,0.00046254,15]
[357289631,1743982247398,-272.76380322,0.0003715,2]
[357289632,1743982247822,-6.93449335,0.0003715,2]
[357289633,1743982247832,-654.60364045,0.00046254,15]
[357289694,1743983244136,-500.0,0.00024045,2]
[357289695,1743983244160,-300.0,0.00024524,2]
[357289696,1743983244183,-24900.0,0.00024525,2]
[357289697,1743983244207,-181.1015708,0.00024597,2]
[357289698,1743983244229,-800.70358502,0.00024797,2]
[357289699,1743983244251,-411.5022233,0.00024897,2]
[357289700,1743983244273,-279.69829657,0.000258,2]
[357289701,1743983244294,-500.0,0.00025873,2]
[357289702,1743983244316,-500.0,0.00025873,2]
[357289703,1743983244337,-362.19133297,0.00025873,2]
[357289704,1743983244358,-500.0,0.00025873,2]
[357289705,1743983244381,-500.0,0.00025873,2]
[357289706,1743983244403,-500.0,0.00025873,2]
[357289707,1743983244424,-500.0,0.00025873,2]
[357289708,1743983244447,-500.0,0.00025889,2]
[357289709,1743983244471,-212.41033901,0.00025889,2]
[357289710,1743983244496,-500.0,0.00025889,2]
[357289711,1743983244521,-206.6181106,0.00025889,2]
[357289712,1743983244543,-14006.22368749,0.0002589,2]
[357289713,1743983259572,-238.305508,0.00023444,2]
[357289716,1743983372127,-151.5178,0.00023444,2]
[357289739,1743983432431,-110.176692,0.00023444,2]
[357289741,1743983432441,-260.16043584,0.0002489,2]
[357290002,1743983438836,-237.16274556,0.0002489,2]
[357290003,1743983438846,-500.0,0.00024985,2]
[357290004,1743983438856,-500.0,0.00025873,2]
[357290005,1743983438866,-500.0,0.00025873,2]
[357290006,1743983438877,-330.6790055,0.00025873,2]
[357290007,1743983438898,-169.3209945,0.00025873,2]
[357290008,1743983438908,-500.0,0.00025873,2]
[357290009,1743983438917,-500.0,0.00025873,2]
[357290010,1743983438927,-500.0,0.00025873,2]
[357290011,1743983438936,-35552.6164808,0.0002589,2]
[357290012,1743983438946,-500.0,0.00025899,2]
[357290013,1743983438955,-404.93015241,0.00025899,2]
[357290014,1743983438965,-170.14005246,0.00025899,2]
[357290015,1743983438975,-500.0,0.00025899,2]
[357290016,1743983438989,-500.0,0.00025899,2]
[357290017,1743983438999,-321802.01891393,0.000259,2]
[357290018,1743983439009,-500.0,0.00025954,2]
[357290019,1743983439019,-569.06139068,0.00026234,2]
[357290020,1743983439030,-1608.4523769,0.000269,7]
[357290021,1743983439040,-500.0,0.00027397,5]
[357290022,1743983439050,-1608.4523768,0.0002759,7]
[357290023,1743983439063,-7110.52329616,0.0002799,2]
[357290024,1743983439073,-6999.79,0.00028,60]
[357290025,1743983439082,-500.0,0.00028079,2]
[357290026,1743983439092,-500.0,0.00028264,2]
[357290027,1743983439102,-1608.4523768,0.00028279,7]
[357290028,1743983439111,-160.0,0.00028928,2]
[357290029,1743983439122,-677.08333333,0.00028928,2]
[357290030,1743983439131,-160.0,0.00028928,2]
[357290031,1743983439141,-1608.4523768,0.00028969,8]
[357290032,1743983439151,-498.82326477,0.00028973,5]
[357290033,1743983439161,-505.40022197,0.00028973,5]
[357290034,1743983439170,-500.0,0.00028973,5]
[357290035,1743983439179,-500.0,0.00028973,5]
[357290036,1743983439189,-500.0,0.00028973,5]
[357290037,1743983439198,-500.0,0.00028973,5]
[357290038,1743983439208,-500.01958862,0.00028973,5]
[357290039,1743983439218,-500.0,0.00028973,5]
[357290040,1743983439228,-500.0,0.00028973,5]
[357290041,1743983439238,-500.0,0.00028973,5]
[357290042,1743983439248,-28442.0931846,0.0002899,2]
[357290043,1743983439258,-82610.67749067,0.00029,7]
[357290044,1743983439268,-3223.58271092,0.00029,7]
[357290045,1743983439277,-82610.67749067,0.00029,7]
[357290046,1743983439287,-160.0,0.00029,7]
[357290047,1743983439296,-419.28457398,0.00029,7]
[357290048,1743983439306,-160.0,0.00029,7]
[357290049,1743983439316,-677.08333333,0.00029,7]
[357290050,1743983439327,-160.0,0.00029,7]
[357290051,1743983439337,-3223.58271092,0.0002925,7]
[357290052,1743983439347,-500.0,0.00029583,2]
[357290053,1743983439356,-500.0,0.00029589,2]
[357290054,1743983439365,-1608.4523768,0.00029659,8]
[357290055,1743983439378,-1608.4523768,0.00030348,9]
[357290056,1743983439387,-500.0,0.00030485,7]
[357290057,1743983439397,-1608.4523768,0.00031038,9]
[357290058,1743983439407,-500.0,0.00031327,7]
[357290059,1743983439417,-1000.0,0.00031352,5]
[357290060,1743983439427,-1000.0,0.00031352,5]
[357290061,1743983439436,-1000.0,0.00031352,5]
[357290062,1743983439445,-1000.0,0.00031352,5]
[357290063,1743983439455,-1000.0,0.00031352,5]
[357290064,1743983439464,-1000.0,0.00031352,2]
[357290065,1743983439474,-1608.4523768,0.00031728,10]
[357290066,1743983439483,-1608.4523768,0.00032417,10]
[357290067,1743983439493,-500.0,0.00032467,7]
[357290068,1743983439503,-257.20483,0.00032516,120]
[357290069,1743983439513,-1000.0,0.00032877,5]
[357290070,1743983439523,-1608.4523768,0.00033107,11]
[357290071,1743983439532,-1608.4523768,0.00033797,11]
[357290072,1743983439541,-500.0,0.00034022,7]
[357290073,1743983439551,-536.2499468,0.00034152,120]
[357290074,1743983439560,-1000.0,0.00034452,5]
[357290075,1743983439569,-500.0,0.00034452,5]
[357290076,1743983439579,-865.86838408,0.00034452,5]
[357290077,1743983439589,-1608.4523768,0.00034486,11]
[357290078,1743983439599,-1608.4523768,0.00035176,12]
[357290079,1743983439608,-618.90558042,0.00035616,7]
[357290080,1743983439618,-500.0,0.00035737,7]
[357290081,1743983439629,-500.0,0.00035758,7]
[357290082,1743983439639,-1608.4523768,0.00035866,12]
[357290083,1743983439649,-1000.0,0.0003589,2]
[357290084,1743983439659,-500.0,0.00036286,7]
[357290085,1743983439669,-500.0,0.00036353,7]
[357290086,1743983439679,-1608.4523768,0.00036555,13]
[357290087,1743983439688,-7110.52329616,0.00036752,3]
[357290088,1743983439697,-1608.4523768,0.00037245,13]
[357290089,1743983439708,-500.0,0.00037453,7]
[357290090,1743983439717,-607.697,0.00037886,49]
[357290091,1743983439727,-1608.4523768,0.00037934,14]
[357290092,1743983439737,-1500.0,0.00038356,5]
[357290093,1743983439746,-500.0,0.00038572,7]
[357290094,1743983439755,-151.0,0.000386,10]
[357290095,1743983439765,-1608.4523768,0.00038624,14]
[357290096,1743983439775,-944.5,0.0003872,30]
[357290097,1743983439784,-153.0,0.00039137,31]
[357290098,1743983439794,-153.0,0.00039137,31]
[357290099,1743983439804,-420.47256183,0.00039245,6]
[357290100,1743983439814,-1608.4523768,0.00039314,15]
[357290101,1743983439824,-753.91299545,0.000396,2]
[357290102,1743983439833,-12525.30748765,0.00039675,2]
[357290103,1743983439843,-500.0,0.00039973,5]
[357290104,1743983439853,-160.0,0.0003998,3]
[357290105,1743983439862,-419.28457398,0.0003998,3]
[357290106,1743983439872,-160.0,0.0003998,3]
[357290107,1743983439882,-1329.73087206,0.0003998,3]
[357290108,1743983439892,-160.0,0.0003999,3]
[357290109,1743983439902,-63994.7096654,0.0003999,3]
[357290110,1743983439912,-677.08333333,0.0003999,3]
[357290111,1743983439922,-160.0,0.0003999,3]
[357290112,1743983439932,-320885.65228262,0.0004,60]
[357290113,1743983439943,-169309.1806037,0.0004,120]
[357290114,1743983439953,-1608.4523768,0.00040003,15]
[357290115,1743983439964,-1608.4523768,0.00040693,16]
[357290116,1743983439976,-500.0,0.00040966,30]
[357290117,1743983439986,-1000.0,0.00041211,120]
[357290118,1743983439999,-500.0,0.00041301,30]
[357290119,1743983440010,-160.0,0.00041371,10]
[357290120,1743983440022,-419.28457398,0.00041371,10]
[357290121,1743983440031,-1500.0,0.00041371,10]
[357290122,1743983440042,-1500.0,0.00041371,10]
[357290123,1743983440052,-1500.0,0.00041371,10]
[357290124,1743983440062,-1500.0,0.00041371,10]
[357290125,1743983440072,-677.08333333,0.00041371,10]
[357290126,1743983440082,-1372.34557284,0.00041371,10]
[357290127,1743983440093,-1500.0,0.00041371,2]
[357290128,1743983440103,-160.0,0.00041371,10]
[357290129,1743983440112,-1608.4523768,0.00041383,16]
[357290130,1743983440123,-500.0,0.00041721,30]
[357290131,1743983440133,-611.0,0.00042,30]
[357290132,1743983440142,-1608.4523768,0.00042072,16]
[357290133,1743983440152,-500.0,0.00042434,30]
[357290134,1743983440162,-1608.4523768,0.00042762,17]
[357290135,1743983440172,-500.0,0.00042973,10]
[357290136,1743983440182,-3223.58271092,0.00043,7]
[357290137,1743983440192,-82610.67749067,0.00043,7]
[357290138,1743983440202,-3223.58271092,0.00043,7]
[357290139,1743983440211,-82610.67749067,0.00043,7]
[357290140,1743983440221,-500.0,0.00043221,30]
[357290141,1743983440231,-1608.4523768,0.00043452,17]
[357290142,1743983440241,-160.0,0.00043573,3]
[357290143,1743983440250,-533.16179593,0.00043835,120]
[357290144,1743983440260,-1000.0,0.00043836,120]
[357290145,1743983440269,-1000.0,0.00043836,120]
[357290146,1743983440279,-2000.0,0.00043836,10]
[357290147,1743983440289,-1000.0,0.00044,120]
[357290148,1743983440299,-1000.0,0.00044,120]
[357290149,1743983440309,-500.0,0.00044015,30]
[357290150,1743983440319,-200.0,0.00044072,14]
[357290151,1743983440330,-200.0,0.00044072,14]
[357290152,1743983440340,-1608.4523768,0.00044141,18]
[357290153,1743983440350,-151.1,0.00044241,2]
[357290154,1743983440359,-1478.0,0.00044241,2]
[357290155,1743983440370,-542.0,0.00044241,2]
[357290156,1743983440380,-2254.0,0.00044241,2]
[357290157,1743983440390,-150.0,0.00044241,2]
[357290158,1743983440400,-1500.0,0.00044471,10]
[357290159,1743983440410,-500.0,0.00044516,30]
[357290160,1743983440420,-600.0,0.00044536,2]
[357290161,1743983440430,-1000.0,0.00045,120]
[357290162,1743983440440,-1000.0,0.00045,120]
[357290163,1743983440451,-1000.0,0.00045,120]
[357290164,1743983440461,-1000.0,0.00045,120]
[357290165,1743983440471,-11090.0,0.00045,120]
[357290166,1743983440480,-300.0,0.00045,5]
[357290167,1743983440490,-161.0,0.00045,90]
[357290168,1743983440500,-1869.5811778,0.00045,4]
[357290169,1743983440510,-165.0,0.00045,90]
[357290170,1743983440520,-500.0,0.00045205,7]
[357290171,1743983440529,-12219.8,0.00045205,120]
[357290172,1743983440539,-500.0,0.00045479,9]
[357290173,1743983440549,-500.0,0.00045498,30]
[357290174,1743983440559,-12219.8,0.00045616,120]
[357290175,1743983440569,-165.0,0.00045685,90]
[357290176,1743983440578,-500.0,0.00045753,11]
[357290178,1743983440587,-687.29,0.000458,2]
[357290180,1743983440597,-500.0,0.00045901,30]
[357290182,1743983440607,-160.0,0.00045979,4]
[357290183,1743983440618,-500.0,0.00045979,30]
[357290185,1743983440629,-3000.0,0.00046,120]
[357290187,1743983440639,-5003.75413733,0.00046,14]
[357290189,1743983440648,-317.728,0.00046,120]
[357290191,1743983440658,-1000.0,0.00046,120]
[357290193,1743983440667,-1000.0,0.00046,120]
[357290195,1743983440676,-1000.0,0.00046,120]
[357290197,1743983440685,-1997.3,0.00046,14]
[357290199,1743983440695,-500.0,0.00046027,13]
[357290201,1743983440705,-3705.72,0.0004619,120]
[357290203,1743983440715,-165.63,0.000462,39]
[357290205,1743983440725,-24471.97547996,0.0004625,61]
[357290208,1743983440739,-22550.05143703,0.0004625,61]
[357290275,1743983441386,-4977.42099397,0.0004625,61]
[357290471,1743983443201,-160.0,0.00039662,2]
[357290473,1743983443211,-419.28457398,0.00039662,2]
[357290475,1743983443221,-1608.4523768,0.00044831,18]
[357290478,1743983443232,-1608.4523768,0.00045521,19]
[357290480,1743983443242,-12219.8,0.00046027,120]
[357290482,1743983443251,-1608.4523768,0.0004621,19]
[357290484,1743983443261,-10403.95827844,0.0004625,61]
[357290518,1743983444863,-7347.3716311,0.00039662,2]
[357290568,1743983446366,-2668.72738719,0.00039662,2]
[357290690,1743983451157,240.8443268,0.00025,120]
[357290693,1743984158200,-303.01981726,0.00023602,2]
[357290699,1743984456329,-500.0,0.00023202,2]
[357290701,1743984570139,-200.0,0.00023202,2]
[357290702,1743984570161,-700.0,0.00024311,2]
[357290703,1743984570184,-700.0,0.00024465,2]
[357290704,1743984570208,-500.0,0.00024467,2]
[357290705,1743984570231,-700.0,0.00024637,2]
[357290706,1743984570255,-700.0,0.00025248,2]
[357290707,1743984570278,-700.0,0.00025545,2]
[357290708,1743984570302,-700.0,0.00026005,2]
[357290728,1743984632573,-700.0,0.00026236,2]
[357290729,1743984632586,-553.69044394,0.00026628,2]
[357290732,1743984632693,-146.30955606,0.00026628,2]
[357290735,1743984632710,-1178.43679377,0.000269,7]
[357290737,1743984632726,-2111.94758161,0.000269,2]
[357290740,1743984632741,-300.0,0.00026907,2]
[357290742,1743984632755,-24900.0,0.00026908,2]
[357290745,1743984632770,-238.305508,0.00027131,2]
[357290747,1743984632784,-500.0,0.00027397,5]
[357290750,1743984632798,-7505.99435976,0.00027541,15]
[357290752,1743984632811,-308.08697403,0.0002759,7]
[357291036,1743984638534,-870.34981956,0.0002759,7]
[357291037,1743984638544,-1178.43679359,0.00028279,7]
[357291038,1743984638554,-700.0,0.00028298,2]
[357291039,1743984638564,-700.0,0.00028562,2]
[357291040,1743984638574,-500.0,0.000289,2]
[357291041,1743984638583,-1178.43679359,0.00028969,8]
[357291042,1743984638593,-500.0,0.00028973,5]
[357291043,1743984638603,-500.0,0.00028973,5]
[357291044,1743984638613,-500.0,0.00028973,5]
[357291045,1743984638623,-500.0,0.00028973,5]
[357291046,1743984638633,-500.0,0.00028973,5]
[357291047,1743984638644,-200.0,0.00028983,2]
[357291048,1743984638654,-3555.26164808,0.0002899,2]
[357291049,1743984638664,-485.55709402,0.0002899,2]
[357291050,1743984638674,-500.0,0.00028999,2]
[357291051,1743984638684,-464.94314451,0.00028999,2]
[357291052,1743984638694,-500.0,0.00028999,2]
[357291053,1743984638704,-303.01981726,0.00028999,2]
[357291054,1743984638713,-3000.0,0.00029,2]
[357291055,1743984638723,-805.89567773,0.00029,7]
[357291056,1743984638733,-41305.34056123,0.00029,7]
[357291057,1743984638743,-41305.34056123,0.00029,7]
[357291058,1743984638753,-805.89567773,0.00029,7]
[357291059,1743984638763,-156.0,0.00029,2]
[357291060,1743984638773,-677.08333333,0.00029,7]
[357291061,1743984638783,-3000.0,0.0002901,2]
[357291062,1743984638793,-3000.0,0.0002902,2]
[357291063,1743984638803,-552.54914341,0.00029029,2]
[357291064,1743984638813,-500.0,0.00029029,2]
[357291065,1743984638823,-3000.0,0.0002903,2]
[357291066,1743984638833,-3555.26164808,0.0002903,2]
[357291067,1743984638842,-485.55709402,0.0002903,2]
[357291068,1743984638852,-160.0,0.00029035,2]
[357291069,1743984638862,-3000.0,0.0002904,2]
[357291070,1743984638872,-3000.0,0.0002905,2]
[357291071,1743984638882,-3000.0,0.0002906,2]
[357291072,1743984638892,-3000.0,0.0002907,2]
[357291073,1743984638901,-3000.0,0.0002908,2]
[357291074,1743984638911,-3000.0,0.0002909,2]
[357291075,1743984638921,-420.0,0.00029092,2]
[357291076,1743984638931,-3000.0,0.000291,2]
[357291077,1743984638941,-3000.0,0.0002911,2]
[357291078,1743984638951,-3000.0,0.0002912,2]
[357291079,1743984638962,-3000.0,0.0002913,2]
[357291080,1743984638972,-3000.0,0.0002914,2]
[357291081,1743984638982,-3000.0,0.0002915,2]
[357291082,1743984638992,-3000.0,0.0002916,2]
[357291083,1743984639002,-3000.0,0.0002917,2]
[357291084,1743984639012,-500.0,0.00029173,5]
[357291085,1743984639022,-500.0,0.00029173,2]
[357291086,1743984639033,-3000.0,0.0002918,2]
[357291087,1743984639044,-3555.26164808,0.0002918,2]
[357291088,1743984639054,-485.55709402,0.0002918,2]
[357291089,1743984639063,-3000.0,0.0002919,2]
[357291090,1743984639073,-3000.0,0.000292,2]
[357291091,1743984639083,-3000.0,0.0002921,2]
[357291092,1743984639093,-3000.0,0.0002922,2]
[357291093,1743984639103,-3000.0,0.0002923,2]
[357291094,1743984639112,-3000.0,0.0002924,2]
[357291095,1743984639122,-3000.0,0.0002925,2]
[357291096,1743984639131,-805.89567773,0.0002925,7]
[357291097,1743984639141,-805.89567773,0.0002925,7]
[357291098,1743984639151,-4916.973375,0.0002926,2]
[357291099,1743984639161,-2111.94758159,0.00029644,2]
[357291100,1743984639171,-1178.43679359,0.00029659,8]
[357291101,1743984639180,-500.0,0.00029705,2]
[357291102,1743984639191,-1178.43679359,0.00030348,9]
[357291103,1743984639201,-344.81753355,0.00030352,2]
[357291104,1743984639211,-700.0,0.00030951,7]
[357291105,1743984639221,-1178.43679359,0.00031038,9]
[357291106,1743984639231,-700.0,0.00031074,7]
[357291107,1743984639241,-500.0,0.00031362,7]
[357291108,1743984639251,-257.0,0.00031455,2]
[357291109,1743984639260,-700.0,0.0003148,7]
[357291110,1743984639270,-700.0,0.00031629,7]
[357291111,1743984639279,-1178.43679359,0.00031728,10]
[357291112,1743984639290,-700.0,0.00031863,7]
[357291113,1743984639300,-500.0,0.00032089,7]
[357291114,1743984639309,-2111.94758159,0.00032388,2]
[357291115,1743984639319,-1178.43679359,0.00032417,10]
[357291116,1743984639328,-1000.0,0.00032877,5]
[357291117,1743984639338,-700.0,0.00033058,7]
[357291118,1743984639348,-1178.43679359,0.00033107,11]
[357291119,1743984639358,-700.0,0.00033231,7]
[357291120,1743984639368,-700.0,0.0003379,7]
[357291121,1743984639379,-1178.43679359,0.00033797,11]
[357291122,1743984639390,-700.0,0.00034008,7]
[357291123,1743984639401,-1000.0,0.00034452,5]
[357291124,1743984639411,-1000.0,0.00034452,5]
[357291125,1743984639422,-1000.0,0.00034452,5]
[357291126,1743984639432,-1000.0,0.00034452,5]
[357291127,1743984639443,-1178.43679359,0.00034486,11]
[357291128,1743984639452,-3555.26164808,0.00034649,2]
[357291129,1743984639463,-485.55709402,0.00034649,2]
[357291130,1743984639473,-1000.0,0.00034652,2]
[357291131,1743984639483,-500.0,0.00035,120]
[357291132,1743984639494,-2111.94758159,0.00035132,2]
[357291133,1743984639504,-1178.43679359,0.00035176,12]
[357291134,1743984639514,-700.0,0.00035302,7]
[357291135,1743984639525,-433.23390629,0.00035616,7]